bitfinex/quotes_BTCUSD_20220306
["timestamp","ask_amount","ask_price","bid_price","bid_amount"]
[1646532223020,0.00045653,39404.0,39398.0,0.16979032]
[1646532223619,0.18740656,39404.0,39398.0,0.16979032]
[1646532224020,0.18740656,39404.0,39395.0,0.12364443]
[1646532224421,0.18740656,39404.0,39399.0,0.00011747]
[1646532225420,0.00045653,39404.0,39396.0,0.20128651]
[1646532225620,0.00045653,39404.0,39400.0,0.00023613]
[1646532226582,0.00045653,39404.0,39394.0,0.0021]
[1646532226776,0.21512966,39399.0,39394.0,0.00304467]
[1646532227175,0.21512966,39399.0,39394.0,0.05304467]
[1646532227575,0.21512966,39399.0,39394.0,0.00304467]
[1646532227776,0.21012966,39399.0,39394.0,0.0021]
[1646532227974,0.21012966,39399.0,39395.0,0.000236]
[1646532228579,0.00045653,39404.0,39395.0,0.000236]
[1646532228977,0.00045653,39404.0,39394.0,0.0021]
[1646532229179,0.15673531,39402.0,39398.0,0.00023599]
[1646532230221,0.15673531,39402.0,39394.0,0.00132768]
[1646532230423,0.15673531,39402.0,39396.0,0.16632702]
[1646532230424,0.35045442,39402.0,39396.0,0.16632702]
[1646532230622,0.35045442,39402.0,39396.0,0.21632702]
[1646532230825,0.19371911,39402.0,39396.0,0.05]
[1646532231122,0.19371911,39402.0,39394.0,0.00132768]
[1646532231522,0.19371911,39402.0,39396.0,0.000236]
[1646532231924,0.17942636,39398.0,39396.0,0.000236]
[1646532232527,0.17942636,39398.0,39394.0,0.00132768]
[1646532233478,0.16104536,39396.0,39390.0,0.001]
[1646532234177,0.16104536,39396.0,39390.0,0.00023601]
[1646532234976,0.16104536,39396.0,39391.0,0.01269]
[1646532235181,0.16104536,39396.0,39391.0,0.00025162]
[1646532235976,0.16104536,39396.0,39391.0,0.00018908]
[1646532236177,0.16104536,39396.0,39390.0,0.00023601]
[1646532239124,0.17923873,39391.0,39390.0,0.01291601]
[1646532239325,0.16104536,39396.0,39390.0,0.01291601]
[1646532239527,0.16104536,39396.0,39390.0,0.00023601]
[1646532239528,0.15,39392.0,39390.0,0.00023601]
[1646532239734,0.3,39391.0,39390.0,0.00023601]
[1646532239928,0.99976399,39390.0,39389.0,0.001]
[1646532240127,1.14976399,39390.0,39389.0,0.00125163]
[1646532240329,0.99976399,39390.0,39389.0,0.00125163]
[1646532240979,1.21045183,39390.0,39389.0,0.001]
[1646532241579,0.99976399,39390.0,39389.0,0.001]
[1646532241784,0.99976399,39390.0,39388.0,0.29125164]
[1646532241983,0.99976399,39390.0,39389.0,0.17621484]
[1646532242184,0.00056399,39390.0,39389.0,0.65]
[1646532242380,0.00056399,39390.0,39389.0,1.59048809]
[1646532242381,0.00044333,39390.0,39389.0,1.59048809]
[1646532242883,0.00044333,39390.0,39389.0,1.7551386]
[1646532243080,0.00044333,39390.0,39389.0,2.066823]
[1646532243483,0.00044333,39390.0,39389.0,2.06039577]
[1646532244080,0.00044333,39390.0,39389.0,2.07055177]
[1646532244279,0.00044333,39390.0,39389.0,2.06039577]
[1646532244481,0.00044333,39390.0,39389.0,1.74871137]
[1646532244725,0.00044333,39390.0,39389.0,1.73871137]
[1646532244927,0.00044333,39390.0,39389.0,0.75140137]
[1646532246326,0.00044333,39390.0,39389.0,0.85140137]
[1646532246728,0.00044333,39390.0,39389.0,0.85139116]
[1646532246928,0.00045653,39404.0,39391.0,0.59897667]
[1646532247127,0.00045653,39404.0,39393.0,0.063465]
[1646532247327,0.00045653,39404.0,39394.0,0.11396536]
[1646532247528,0.00045653,39404.0,39395.0,0.00929388]
[1646532247727,0.17189985,39404.0,39399.0,0.05745156]
[1646532247929,0.17189985,39404.0,39400.0,0.0505]
[1646532248333,0.00045653,39404.0,39400.0,0.0505]
[1646532249480,0.00045653,39404.0,39400.0,0.11395498]
[1646532249779,0.00045653,39404.0,39400.0,0.16395498]
[1646532250180,0.00045653,39404.0,39400.0,0.16325673]
[1646532250384,0.00045653,39404.0,39400.0,0.41222091]
[1646532250589,0.00045653,39404.0,39403.0,0.10051654]
[1646532250784,0.00045653,39404.0,39403.0,0.15101654]
[1646532250982,0.00045653,39404.0,39403.0,0.20101654]
[1646532251584,0.00045653,39404.0,39403.0,0.51273745]
[1646532251780,0.00045653,39404.0,39403.0,0.61273745]
[1646532252528,0.00045653,39404.0,39403.0,1.58260721]
[1646532252726,0.00045653,39404.0,39403.0,1.54311428]
[1646532253926,0.00045653,39404.0,39403.0,1.1794188]
[1646532254327,0.00045653,39404.0,39403.0,1.543165]
[1646532254527,0.00045653,39404.0,39403.0,1.54317627]
[1646532255124,0.00045653,39404.0,39403.0,1.54241228]
[1646532255993,0.00045653,39404.0,39403.0,1.54239953]
[1646532256591,0.00045653,39404.0,39403.0,1.07113215]
[1646532256888,0.00045653,39404.0,39403.0,1.52831727]
[1646532257089,0.00045653,39404.0,39403.0,1.33242517]
[1646532257293,0.00045653,39404.0,39403.0,0.31178257]
[1646532257494,0.00045653,39404.0,39398.0,0.31178257]
[1646532257693,0.00045653,39404.0,39397.0,0.72148422]
[1646532257694,0.00045653,39404.0,39399.0,0.5]
[1646532257891,0.00045653,39404.0,39399.0,0.506]
[1646532258392,0.00045653,39404.0,39402.0,0.25365547]
[1646532258593,0.00045653,39404.0,39402.0,0.06170815]
[1646532258990,0.00045653,39404.0,39402.0,0.06454198]
[1646532259593,0.00045653,39404.0,39402.0,0.00283383]
[1646532261234,0.00045653,39404.0,39402.0,0.10283383]
[1646532261433,0.00045653,39404.0,39403.0,0.05075381]
[1646532261933,0.00045653,39404.0,39403.0,0.22637745]
[1646532262133,0.00045653,39404.0,39403.0,0.10075381]
[1646532262631,0.00045653,39404.0,39403.0,0.05075381]
[1646532263033,1.00045653,39404.0,39403.0,0.05075381]
[1646532263234,0.99545653,39404.0,39403.0,0.22984346]
[1646532263489,0.99545653,39404.0,39403.0,0.05075381]
[1646532265290,0.94924619,39403.0,39402.0,0.05283383]
[1646532265492,0.94924619,39403.0,39402.0,0.21501463]
[1646532265691,0.94924619,39403.0,39402.0,0.16501463]
[1646532265892,0.94924619,39403.0,39402.0,0.21501463]
[1646532266495,0.94924619,39403.0,39402.0,0.22791165]
[1646532266691,0.94924619,39403.0,39402.0,0.49183952]
[1646532266890,0.94924619,39403.0,39402.0,0.32791165]
[1646532268532,0.94924619,39403.0,39402.0,0.49647502]
[1646532268735,0.91106873,39403.0,39402.0,0.79647502]
[1646532268938,0.91106873,39403.0,39402.0,1.73955759]
[1646532269139,0.58774376,39403.0,39402.0,1.58373107]
[1646532269733,0.58774376,39403.0,39402.0,1.01634802]
[1646532269934,0.58774376,39403.0,39402.0,1.76188291]
[1646532270335,0.58774376,39403.0,39402.0,1.01634802]
[1646532270533,0.58774376,39403.0,39402.0,0.21648465]
[1646532270734,0.58774376,39403.0,39402.0,0.52824279]
[1646532271174,0.58774376,39403.0,39402.0,0.52747047]
[1646532271377,0.58774376,39403.0,39402.0,0.82747047]
[1646532271575,0.41303373,39403.0,39402.0,1.04036059]
[1646532272174,0.41303373,39403.0,39402.0,1.04036093]
[1646532273277,0.40803373,39403.0,39402.0,1.04036093]
[1646532274282,0.40803373,39403.0,39402.0,1.04212439]
[1646532276144,0.40803373,39403.0,39402.0,0.82722148]
[1646532276851,0.40803373,39403.0,39402.0,0.89066648]
[1646532277046,0.40803373,39403.0,39402.0,1.05514847]
[1646532278047,0.40803373,39403.0,39402.0,0.99170347]
[1646532278245,0.40803373,39403.0,39402.0,0.67997176]
[1646532278473,0.40803373,39403.0,39402.0,0.515463]
[1646532278876,0.40803373,39403.0,39402.0,0.82719508]
[1646532279075,0.40803373,39403.0,39402.0,0.82886514]
[1646532279477,0.40803373,39403.0,39402.0,0.51713306]
[1646532279674,0.40803373,39403.0,39402.0,0.68188177]
[1646532280076,0.40803373,39403.0,39402.0,0.74532677]
[1646532280382,0.11549174,39415.0,39404.0,0.1]
[1646532280578,0.64069174,39416.0,39405.0,1.2935204]
[1646532280780,0.64069174,39416.0,39407.0,0.6313]
[1646532280978,0.11549174,39416.0,39408.0,0.36430641]
[1646532281179,0.11549174,39416.0,39413.0,0.18180778]
[1646532281479,0.11549174,39416.0,39414.0,0.0505]
[1646532281677,0.11549174,39416.0,39415.0,0.06875066]
[1646532281879,0.13750132,39414.0,39412.0,0.004]
[1646532282081,0.13750132,39414.0,39413.0,0.05868146]
[1646532282340,0.13750132,39414.0,39413.0,0.10918146]
[1646532282746,0.13750132,39414.0,39413.0,0.1005]
[1646532282939,0.13750132,39414.0,39413.0,0.0505]
[1646532283140,0.13750132,39414.0,39413.0,0.1005]
[1646532283342,0.13750132,39414.0,39413.0,0.0505]
[1646532283542,0.13750132,39414.0,39408.0,0.16380641]
[1646532284144,0.13750132,39414.0,39409.0,0.0505]
[1646532284342,0.13750132,39414.0,39410.0,0.3]
[1646532284541,0.13750132,39414.0,39411.0,0.0505]
[1646532284744,0.00025119,39413.0,39411.0,0.0505]
[1646532284940,0.00025119,39413.0,39412.0,0.11166237]
[1646532285143,0.00025119,39413.0,39412.0,0.16216237]
[1646532285347,0.00025119,39413.0,39412.0,0.51216237]
[1646532285543,0.00025119,39413.0,39412.0,0.52260057]
[1646532285742,0.13750132,39414.0,39412.0,0.52260057]
[1646532285977,0.13750132,39414.0,39413.0,0.3]
[1646532285978,0.13775251,39414.0,39413.0,0.3]
[1646532286178,0.13775251,39414.0,39413.0,0.0505]
[1646532286377,0.13775251,39414.0,39413.0,0.1005]
[1646532286781,0.13750132,39414.0,39413.0,0.1005]
[1646532288379,0.13750132,39414.0,39413.0,0.05]
[1646532288879,0.13750132,39414.0,39409.0,0.60979273]
[1646532289579,0.00024303,39413.0,39409.0,0.60979273]
[1646532289827,0.00024303,39413.0,39410.0,0.25979273]
[1646532290526,0.13750132,39414.0,39410.0,0.25979273]
[1646532290728,0.00024303,39413.0,39409.0,0.60979273]
[1646532290929,0.00024303,39413.0,39410.0,0.25979273]
[1646532291529,0.00024303,39413.0,39409.0,0.36029273]
[1646532291729,0.25299306,39414.0,39410.0,0.25979273]
[1646532291929,0.00023483,39413.0,39410.0,0.25979273]
[1646532292328,0.00023483,39413.0,39410.0,0.25902041]
[1646532292533,0.00017483,39413.0,39410.0,0.25902041]
[1646532292930,0.25299306,39414.0,39410.0,0.25902041]
[1646532293575,0.00127745,39413.0,39409.0,0.1005]
[1646532295479,0.00127745,39413.0,39409.0,0.05]
[1646532295678,0.00127745,39413.0,39408.0,0.56323753]
[1646532295879,0.00127745,39413.0,39409.0,0.3117204]
[1646532296680,0.00151573,39413.0,39408.0,0.56323753]
[1646532296882,0.00151573,39413.0,39408.0,0.37203912]
[1646532297082,0.00151573,39413.0,39408.0,0.37127513]
[1646532297626,0.00127745,39413.0,39408.0,0.37127513]
[1646532297821,0.00127745,39413.0,39409.0,0.20366732]
[1646532298020,0.00151573,39413.0,39409.0,0.20366732]
[1646532298221,0.00151573,39413.0,39409.0,0.25366732]
[1646532298821,0.00127745,39413.0,39409.0,0.25299444]
[1646532299022,0.00127745,39413.0,39409.0,0.04932712]
[1646532299226,0.00151573,39413.0,39408.0,0.32127513]
[1646532299424,0.00151573,39413.0,39408.0,0.00955473]
[1646532299623,0.99044527,39408.0,39407.0,0.4117204]
[1646532299824,0.99044527,39408.0,39407.0,0.11772916]
[1646532300128,1.17540358,39408.0,39407.0,0.11772916]
[1646532300324,1.17540358,39408.0,39407.0,0.16772916]
[1646532300625,0.99044527,39408.0,39407.0,0.47944956]
[1646532301777,0.99044527,39408.0,39407.0,0.16772916]
[1646532303179,0.99044527,39408.0,39407.0,0.2062269]
[1646532303379,0.91452427,39408.0,39407.0,0.2062269]
[1646532303784,0.91452427,39408.0,39407.0,0.51810973]
[1646532304845,0.91452427,39408.0,39407.0,0.08875152]
[1646532305243,0.91452427,39408.0,39407.0,0.03875152]
[1646532306249,0.91452427,39408.0,39407.0,0.35063435]
[1646532306448,0.91452427,39408.0,39407.0,0.03875152]
[1646532306646,0.91452427,39408.0,39407.0,0.56603552]
[1646532306849,0.91452427,39408.0,39407.0,0.80018286]
[1646532307250,0.91452427,39408.0,39407.0,0.50806858]
[1646532307550,0.91452427,39408.0,39407.0,0.87201746]
[1646532307752,0.91452427,39408.0,39407.0,1.27896858]
[1646532307953,0.91452427,39408.0,39407.0,1.34240458]
[1646532307954,0.87837734,39408.0,39407.0,1.34240458]
[1646532308149,0.87837734,39408.0,39407.0,1.94240458]
[1646532308350,0.84137734,39408.0,39407.0,1.94881267]
[1646532308780,0.16868361,39408.0,39407.0,1.96149267]
[1646532309480,0.16868361,39408.0,39407.0,2.46149267]
[1646532309685,0.11549174,39423.0,39408.0,1.7209]
[1646532309884,0.11549174,39423.0,39413.0,1.37042972]
[1646532309885,0.1144,39422.0,39413.0,1.37042972]
[1646532310083,0.1144,39422.0,39413.0,1.58395625]
[1646532310284,0.1144,39422.0,39413.0,1.84607472]
[1646532310982,0.1144,39422.0,39413.0,1.87108472]
[1646532311185,0.00023472,39415.0,39413.0,1.50765572]
[1646532311386,0.00023472,39415.0,39413.0,1.48264572]
[1646532311584,0.00023472,39415.0,39413.0,1.97285352]
[1646532312229,0.1144,39422.0,39413.0,1.97285352]
[1646532312422,0.00023501,39415.0,39413.0,1.97285352]
[1646532312821,0.00023501,39415.0,39413.0,2.0442669]
[1646532313221,0.1144,39422.0,39413.0,2.04349458]
[1646532313621,0.00023501,39415.0,39413.0,2.04349458]
[1646532314422,0.00023501,39415.0,39413.0,2.04562122]
[1646532314623,0.1144,39422.0,39413.0,2.10904422]
[1646532314821,0.00023501,39415.0,39413.0,2.10904422]
[1646532315223,0.00023501,39415.0,39413.0,2.04562122]
[1646532315624,0.1144,39422.0,39413.0,2.04562122]
[1646532316113,0.00023499,39415.0,39413.0,2.04562122]
[1646532316312,0.00023499,39415.0,39413.0,2.47420784]
[1646532316911,0.1144,39422.0,39413.0,2.47420784]
[1646532317112,0.00011851,39415.0,39413.0,2.47420784]
[1646532317713,0.00011851,39415.0,39413.0,2.53763084]
[1646532318116,0.11549174,39423.0,39413.0,2.53763084]
[1646532318117,0.11549174,39423.0,39413.0,2.75516483]
[1646532318319,0.00011851,39415.0,39413.0,2.75516483]
[1646532318514,0.00011851,39415.0,39414.0,1.7209]
[1646532318717,0.3109,39426.0,39416.0,0.7709]
[1646532318918,0.3109,39426.0,39425.0,0.27124719]
[1646532318919,0.1169,39426.0,39425.0,0.27124719]
[1646532319118,0.20577085,39438.0,39426.0,0.7709]
[1646532319119,0.1169,39436.0,39426.0,0.7709]
[1646532319416,0.1169,39436.0,39429.0,0.20782159]
[1646532319417,0.23239174,39436.0,39429.0,0.20782159]
[1646532319616,0.22739174,39436.0,39430.0,0.25832159]
[1646532319837,0.38992167,39436.0,39430.0,0.25832159]
[1646532320037,0.22739174,39436.0,39430.0,0.30832159]
[1646532320238,0.11549174,39436.0,39431.0,0.7709]
[1646532320438,0.09049174,39436.0,39431.0,0.20782159]
[1646532320740,0.09049174,39436.0,39432.0,0.8214]
[1646532320741,0.00011851,39435.0,39432.0,0.8214]
[1646532320941,0.08561025,39436.0,39432.0,0.7709]
[1646532321138,0.08561025,39436.0,39433.0,0.25243583]
[1646532321439,0.186,39438.0,39433.0,0.30243583]
[1646532321637,0.08561025,39434.0,39433.0,0.1005]
[1646532321838,0.08561025,39434.0,39433.0,0.0505]
[1646532322739,0.25858618,39434.0,39433.0,0.0505]
[1646532323582,0.08561025,39434.0,39433.0,0.0505]
[1646532324178,0.08561025,39434.0,39433.0,0.10052]
[1646532324377,0.08561025,39434.0,39433.0,0.14552]
[1646532325980,0.24521119,39434.0,39433.0,0.14552]
[1646532326184,0.24521119,39434.0,39433.0,0.09502]
[1646532326381,0.08561025,39434.0,39433.0,0.05002]
[1646532327423,0.27919798,39434.0,39433.0,0.05002]
[1646532327822,0.30453798,39434.0,39433.0,0.05002]
[1646532329026,0.30453798,39434.0,39433.0,0.0523218]
[1646532329530,0.55453798,39434.0,39433.0,0.0523218]
[1646532330328,0.55453798,39434.0,39433.0,0.05002]
[1646532331982,0.75453798,39434.0,39433.0,0.05002]
[1646532334406,0.75453798,39434.0,39433.0,0.04924768]
[1646532334580,0.02534,39433.0,39427.0,0.002]
[1646532334821,0.08561025,39428.0,39427.0,0.002]
[1646532335025,0.08561025,39428.0,39426.0,0.01267]
[1646532335627,0.20442526,39427.0,39426.0,0.01267]
[1646532338326,0.08561025,39428.0,39426.0,0.01267]
[1646532338578,0.08561025,39428.0,39427.0,0.00148031]
[1646532339282,0.08561025,39428.0,39427.0,0.00071632]
[1646532339678,0.08561025,39428.0,39427.0,0.049964]
[1646532341885,0.12316499,39434.0,39427.0,0.049964]
[1646532342084,0.02534,39433.0,39427.0,0.049964]
[1646532342742,0.14827096,39433.0,39427.0,0.049964]
[1646532344045,0.12293096,39432.0,39427.0,0.049964]
[1646532344245,0.14827096,39432.0,39427.0,0.049964]
[1646532344445,0.14827096,39432.0,39427.0,0.05094765]
[1646532344643,0.12293096,39432.0,39427.0,0.05094765]
[1646532344843,0.32546173,39432.0,39427.0,0.00169997]
[1646532345045,0.12293096,39432.0,39429.0,0.04924768]
[1646532346481,0.00021876,39434.0,39429.0,0.04924768]
[1646532346679,0.12293096,39433.0,39429.0,0.04924768]
[1646532348881,0.12293096,39433.0,39429.0,0.05264423]
[1646532349180,0.19970167,39434.0,39429.0,0.05264423]
[1646532349181,0.12293096,39430.0,39429.0,0.05264423]
[1646532349379,0.19948291,39434.0,39429.0,0.05264423]
[1646532349582,0.34970221,39434.0,39429.0,0.05264423]
[1646532349836,0.0255593,39434.0,39429.0,0.05264423]
[1646532350030,0.12293096,39433.0,39429.0,0.00339655]
[1646532350230,0.12293096,39433.0,39431.0,0.04924768]
[1646532350831,0.29392256,39433.0,39431.0,0.04924768]
[1646532352331,0.12293096,39433.0,39431.0,0.04924768]
[1646532353488,0.12293096,39433.0,39431.0,0.04593904]
[1646532354488,0.18295482,39432.0,39431.0,0.04593904]
[1646532355292,0.18295482,39432.0,39431.0,0.00169136]
[1646532355489,0.18295482,39432.0,39431.0,0.04516672]
[1646532358130,0.18295482,39432.0,39431.0,0.04690394]
[1646532358527,0.12293096,39433.0,39431.0,0.04690394]
[1646532359629,0.27470245,39433.0,39431.0,0.04690394]
[1646532359837,0.30004245,39433.0,39431.0,0.04690394]
[1646532360231,0.30004245,39433.0,39431.0,0.04489115]
[1646532360632,0.5058133,39433.0,39431.0,0.00141579]
[1646532360834,0.30004245,39433.0,39432.0,0.04347536]
[1646532361779,0.5058133,39433.0,39432.0,0.04347536]
[1646532361979,0.30004245,39433.0,39432.0,0.04347536]
[1646532363679,0.55004245,39433.0,39432.0,0.04347536]
[1646532363883,0.55004245,39433.0,39432.0,0.04688811]
[1646532364280,0.37293096,39433.0,39432.0,0.04688811]
[1646532365342,0.54532249,39433.0,39432.0,0.04688811]
[1646532365941,0.37293096,39433.0,39432.0,0.04688811]
[1646532366344,0.25,39433.0,39432.0,0.04688811]
[1646532369080,0.25,39433.0,39432.0,0.04347536]
[1646532371978,0.00728119,39431.0,39430.0,0.25792025]
[1646532372232,0.00728119,39431.0,39430.0,0.05]
[1646532372637,0.00728119,39431.0,39430.0,0.05075371]
[1646532373031,0.00728119,39431.0,39430.0,0.33737831]
[1646532373631,0.00728119,39431.0,39430.0,0.10075371]
[1646532374033,0.00728119,39431.0,39430.0,0.75960031]
[1646532375032,0.00728119,39431.0,39430.0,0.77228031]
[1646532375237,0.00728119,39431.0,39430.0,1.27228031]
[1646532375432,0.00728119,39431.0,39430.0,1.25960031]
[1646532376278,0.00728119,39431.0,39430.0,1.25882799]
[1646532377482,0.00728119,39431.0,39430.0,1.011654]
[1646532377682,0.00728119,39431.0,39430.0,2.1190117]
[1646532378580,0.00728119,39431.0,39430.0,2.72297157]
[1646532378779,0.00728119,39431.0,39430.0,2.6190117]
[1646532379381,0.00728119,39431.0,39430.0,3.22295452]
[1646532379582,0.00728119,39431.0,39430.0,3.26128905]
[1646532379841,0.00728119,39431.0,39430.0,3.89253231]
[1646532381135,0.00728119,39431.0,39430.0,3.89176832]
[1646532382240,0.18287447,39433.0,39432.0,0.00741691]
[1646532382438,0.15640024,39433.0,39432.0,1.8086626]
[1646532382639,0.15640024,39433.0,39432.0,1.66849685]
[1646532383349,0.00023471,39434.0,39433.0,1.90453045]
[1646532383583,0.04,39442.0,39435.0,0.7709]
[1646532383785,0.04,39442.0,39441.0,0.2576787]
[1646532383980,0.04,39442.0,39441.0,0.1005]
[1646532384179,0.04,39442.0,39441.0,0.21206894]
[1646532384381,0.04,39442.0,39441.0,0.81143522]
[1646532384581,0.04,39442.0,39441.0,1.25943104]
[1646532384784,0.04,39442.0,39441.0,1.05183684]
[1646532385281,0.04,39442.0,39441.0,1.81143522]
[1646532385779,0.04,39442.0,39441.0,1.49093878]
[1646532385987,0.04,39442.0,39441.0,1.51965657]
[1646532386582,0.29,39442.0,39441.0,1.31206045]
[1646532386982,0.29,39442.0,39441.0,1.69120995]
[1646532387429,0.29,39442.0,39441.0,1.48361383]
[1646532391087,0.29,39442.0,39441.0,2.25451383]
[1646532391304,0.00025004,39443.0,39442.0,0.95]
[1646532391593,0.3,39455.0,39445.0,0.12674899]
[1646532391793,0.5517,39456.0,39446.0,0.39891761]
[1646532391989,0.5517,39456.0,39447.0,0.0505]
[1646532392188,0.12293096,39457.0,39447.0,0.0505]
[1646532392387,0.12293096,39457.0,39447.0,0.0455]
[1646532392787,0.00025001,39454.0,39447.0,0.0455]
[1646532393187,0.1687591,39453.0,39447.0,0.0455]
[1646532393387,0.1687591,39453.0,39451.0,0.11155904]
[1646532393588,0.00025001,39454.0,39452.0,0.11155479]
[1646532393789,0.12293096,39457.0,39452.0,0.05]
[1646532394187,0.00025001,39454.0,39448.0,0.555]
[1646532394389,0.00025001,39454.0,39449.0,0.0505]
[1646532395027,0.19105865,39456.0,39449.0,0.0505]
[1646532395230,0.00025001,39453.0,39449.0,0.0505]
[1646532395426,0.00025001,39453.0,39452.0,0.11155621]
[1646532395628,0.00025001,39453.0,39449.0,0.0505]
[1646532395828,0.00025001,39453.0,39452.0,0.11155479]
[1646532396028,0.00025001,39453.0,39452.0,0.16155479]
[1646532396231,0.12293096,39457.0,39452.0,0.16155479]
[1646532396431,0.00024249,39454.0,39452.0,0.05]
[1646532396635,0.25,39453.0,39449.0,0.1005]
[1646532396832,0.25,39453.0,39452.0,0.11154772]
[1646532397030,0.25,39453.0,39452.0,0.16154772]
[1646532397431,0.25,39453.0,39452.0,0.1607754]
[1646532398236,0.50796552,39452.0,39448.0,0.30524772]
[1646532398492,0.06638972,39448.0,39446.0,0.39891761]
[1646532398692,0.02534,39447.0,39446.0,0.39891761]
[1646532398990,0.02534,39447.0,39446.0,0.89891761]
[1646532399197,0.18047327,39447.0,39446.0,0.39891761]
[1646532399391,0.02534,39447.0,39446.0,0.39891761]
[1646532400390,0.18598191,39447.0,39446.0,0.39891761]
[1646532400591,0.02557381,39448.0,39446.0,0.39891761]
[1646532400992,0.14827096,39449.0,39446.0,0.39891761]
[1646532401191,0.14850477,39449.0,39446.0,0.39891761]
[1646532401590,0.02534,39448.0,39446.0,0.39891761]
[1646532401992,0.02534,39450.0,39446.0,0.39891761]
[1646532402234,0.02534,39450.0,39446.0,0.39815362]
[1646532402428,0.02534,39450.0,39443.0,0.004]
[1646532402628,0.15,39453.0,39443.0,0.004]
[1646532402629,0.02534,39449.0,39443.0,0.004]
[1646532402829,2.15185191,39457.0,39443.0,0.004]
[1646532402830,0.15,39455.0,39443.0,0.004]
[1646532403033,0.02534,39455.0,39443.0,0.004]
[1646532403230,0.02534,39455.0,39443.0,0.0712452]
[1646532403429,0.02534,39455.0,39444.0,0.3]
[1646532403630,0.02534,39455.0,39445.0,0.0505]
[1646532403631,0.0002344,39451.0,39445.0,0.0505]
[1646532403830,0.0002344,39451.0,39448.0,0.20929114]
[1646532404128,0.0208829,39455.0,39449.0,0.3]
[1646532405230,0.1906,39457.0,39449.0,0.3]
[1646532405231,0.14704,39456.0,39449.0,0.3]
[1646532405630,0.14704,39456.0,39449.0,0.3505]
[1646532406002,0.1217,39456.0,39449.0,0.3505]
[1646532406199,0.1217,39456.0,39449.0,0.0505]
[1646532406499,0.18148043,39455.0,39449.0,0.04886]
[1646532406699,0.19308982,39450.0,39449.0,0.04886]
[1646532406904,0.43148043,39455.0,39446.0,0.004]
[1646532407300,0.43148043,39455.0,39444.0,0.52261383]
[1646532407500,0.45682043,39455.0,39444.0,0.52261383]
[1646532407900,0.16893747,39453.0,39444.0,0.52261383]
[1646532408099,0.16893747,39453.0,39444.0,0.52201383]
[1646532408302,0.16893747,39453.0,39444.0,0.53468383]
[1646532408502,0.16918766,39453.0,39444.0,0.51720383]
[1646532409203,0.16918766,39453.0,39444.0,0.34459]
[1646532409405,0.16893747,39453.0,39444.0,0.34459]
[1646532409601,0.16918766,39453.0,39444.0,0.34459]
[1646532409835,0.17613897,39449.0,39444.0,0.04459]
[1646532410035,0.19039579,39447.0,39441.0,0.3]
[1646532410234,0.19039579,39447.0,39441.0,0.4]
[1646532410433,0.17613897,39449.0,39441.0,0.4]
[1646532411535,0.35585244,39449.0,39441.0,0.4]
[1646532411736,0.17613897,39449.0,39441.0,0.4]
[1646532413036,0.17613897,39449.0,39441.0,0.60759612]
[1646532413885,0.02558247,39453.0,39446.0,0.16077382]
[1646532413886,0.00024247,39453.0,39446.0,0.16077382]
[1646532414081,0.00024247,39453.0,39447.0,0.3]
[1646532414278,0.1217,39456.0,39447.0,0.3]
[1646532414479,0.00024248,39453.0,39446.0,0.16077382]
[1646532414682,0.00024248,39453.0,39446.0,0.21077382]
[1646532415479,0.19852167,39454.0,39444.0,0.41674036]
[1646532415680,0.00023379,39453.0,39444.0,0.41674036]
[1646532416484,0.00023379,39453.0,39445.0,0.20759612]
[1646532416684,0.19852167,39454.0,39444.0,0.41674036]
[1646532416882,0.00023378,39453.0,39444.0,0.41674036]
[1646532417081,0.00023378,39453.0,39444.0,0.25759612]
[1646532417555,0.00023378,39453.0,39446.0,0.16460958]
[1646532417748,0.19852167,39454.0,39446.0,0.21460958]
[1646532417947,0.19852167,39454.0,39445.0,0.20759612]
[1646532418149,0.25023379,39453.0,39444.0,0.25759612]
[1646532418349,0.25023379,39453.0,39445.0,0.2068238]
[1646532418547,0.25023379,39453.0,39443.0,0.30959838]
[1646532418548,0.25023379,39453.0,39444.0,0.25959838]
[1646532418748,0.2448961,39453.0,39444.0,0.25959838]
[1646532418947,0.24466231,39453.0,39445.0,0.19766079]
[1646532419347,0.24466231,39453.0,39445.0,0.24766079]
[1646532419548,0.2448965,39453.0,39445.0,0.24766079]
[1646532419954,0.00023419,39453.0,39445.0,0.24766079]
[1646532420152,0.19852167,39454.0,39445.0,0.24766079]
[1646532420451,0.00023419,39453.0,39445.0,0.24766079]
[1646532420653,0.00023419,39453.0,39445.0,0.50725917]
[1646532420851,0.00023419,39453.0,39445.0,0.30959838]
[1646532421980,0.00023419,39453.0,39445.0,0.05]
[1646532422178,0.00023419,39453.0,39444.0,0.5088249]
[1646532422381,0.00023419,39453.0,39445.0,0.25959838]
[1646532422684,0.22386167,39454.0,39447.0,0.25959838]
[1646532422881,0.00024295,39453.0,39447.0,0.25959838]
[1646532423281,0.00024295,39453.0,39447.0,0.25883439]
[1646532423881,0.22386167,39454.0,39447.0,0.25883439]
[1646532424083,0.00024295,39453.0,39447.0,0.25883439]
[1646532424281,0.00024295,39453.0,39446.0,0.005]
[1646532424729,0.00024295,39453.0,39446.0,0.31651806]
[1646532424930,0.00024295,39453.0,39446.0,0.36651806]
[1646532425128,0.02534,39453.0,39446.0,0.36651806]
[1646532425333,0.02558295,39453.0,39446.0,0.36151806]
[1646532425833,0.00024295,39453.0,39446.0,0.36151806]
[1646532426130,0.20758203,39453.0,39446.0,0.36151806]
[1646532426328,0.20733908,39453.0,39446.0,0.36151806]
[1646532426531,0.00023502,39453.0,39446.0,0.36151806]
[1646532426930,0.00023502,39453.0,39446.0,0.05]
[1646532427330,0.02534,39452.0,39445.0,0.31151806]
[1646532427530,0.02534,39452.0,39446.0,0.31151806]
[1646532427731,0.16687528,39449.0,39446.0,0.31151806]
[1646532427933,0.02534,39452.0,39449.0,0.15076169]
[1646532428329,0.02534,39452.0,39451.0,0.20777691]
[1646532429378,0.19051224,39452.0,39451.0,0.20777691]
[1646532429578,0.02534,39452.0,39451.0,0.20777691]
[1646532430582,0.02534,39452.0,39449.0,0.15076169]
[1646532431381,0.32534,39452.0,39451.0,0.20778149]
[1646532431584,0.32534,39452.0,39450.0,0.20778149]
[1646532431585,0.02534,39452.0,39450.0,0.20778149]
[1646532431981,0.02534,39453.0,39450.0,0.20778149]
[1646532432231,0.02534,39453.0,39450.0,0.20779479]
[1646532432428,0.18897676,39452.0,39449.0,0.35855648]
[1646532433929,0.02534,39453.0,39449.0,0.35855648]
[1646532434932,0.02534,39451.0,39449.0,0.35855648]
[1646532435134,0.20280205,39454.0,39450.0,0.20779479]
[1646532435333,0.16028814,39455.0,39450.0,0.20779479]
[1646532435334,0.02534,39453.0,39450.0,0.20779479]
[1646532436779,0.1945729,39452.0,39450.0,0.20779479]
[1646532437976,0.02534,39453.0,39450.0,0.20779479]
[1646532438179,0.02534,39455.0,39452.0,0.01521491]